[Event "MČR juniorů a juniorek v rapid šachu 2024"]
[Site "Hotel Fit Fun, Harrachov, Czech Republic"]
[Date "2024.09.22"]
[Round "7.27"]
[White "Budil Vaclav"]
[Black "Plzak David"]
[Result "1-0"]
[TimeControl "20+5"]
[WhiteFideId "23776226"]
[BlackFideId "23776234"]
[WhiteElo "1697"]
[BlackElo "1625"]

1. e4 {[%clk 00:20:05]} {[%emt 00:01:53]} c5 {[%clk 00:20:05]} {[%emt
00:00:02]} 2. Nf3 {[%clk 00:20:04]} {[%emt 00:00:07]} a6 {[%clk 00:20:10]} 3.
Nc3 {[%clk 00:19:58]} {[%emt 00:00:12]} e6 {[%clk 00:20:14]} {[%emt 00:00:02]}
4. d4 {[%clk 00:19:46]} {[%emt 00:00:16]} cxd4 {[%clk 00:20:17]} {[%emt
00:00:02]} 5. Nxd4 {[%clk 00:19:49]} {[%emt 00:00:02]} b5 {[%clk 00:20:02]}
{[%emt 00:00:20]} 6. Be3 {[%clk 00:18:00]} {[%emt 00:01:54]} Bb7 {[%clk
00:19:56]} {[%emt 00:00:11]} 7. f3 {[%clk 00:17:49]} {[%emt 00:00:16]} Nc6
{[%clk 00:19:37]} {[%emt 00:00:24]} 8. Qd2 {[%clk 00:17:21]} {[%emt 00:00:33]}
Nf6 {[%clk 00:17:30]} {[%emt 00:02:12]} 9. a4 {[%clk 00:15:02]} {[%emt
00:02:24]} b4 {[%clk 00:16:53]} {[%emt 00:00:42]} 10. Nce2 {[%clk 00:15:06]}
Be7 {[%clk 00:15:38]} {[%emt 00:01:20]} 11. Nxc6 {[%clk 00:14:55]} {[%emt
00:00:16]} Bxc6 {[%clk 00:15:24]} {[%emt 00:00:18]} 12. Nd4 {[%clk 00:14:57]}
{[%emt 00:00:03]} Qc8 {[%clk 00:14:31]} {[%emt 00:00:59]} 13. Be2 {[%clk
00:14:22]} {[%emt 00:00:40]} O-O {[%clk 00:13:47]} {[%emt 00:00:49]} 14. O-O
{[%clk 00:13:58]} {[%emt 00:00:29]} Qb7 {[%clk 00:13:07]} {[%emt 00:00:44]} 15.
Nxc6 {[%clk 00:10:17]} {[%emt 00:03:46]} dxc6 {[%clk 00:13:06]} {[%emt
00:00:05]} 16. Bc4 {[%clk 00:10:10]} {[%emt 00:00:12]} Rfd8 {[%clk 00:12:37]}
{[%emt 00:00:34]} 17. Qe2 {[%clk 00:10:09]} {[%emt 00:00:06]} a5 {[%clk
00:12:25]} {[%emt 00:00:17]} 18. Rfd1 {[%clk 00:10:05]} {[%emt 00:00:09]} Qc7
{[%clk 00:11:10]} {[%emt 00:01:21]} 19. Qf2 {[%clk 00:07:54]} {[%emt 00:02:16]}
c5 {[%clk 00:10:30]} {[%emt 00:00:45]} 20. Bb5 {[%clk 00:06:40]} {[%emt
00:01:20]} Bd6 {[%clk 00:08:39]} {[%emt 00:01:55]} 21. g3 {[%clk 00:06:08]}
{[%emt 00:00:37]} Rac8 {[%clk 00:06:44]} {[%emt 00:01:59]} 22. b3 {[%clk
00:02:30]} {[%emt 00:03:44]} Be5 {[%clk 00:05:41]} {[%emt 00:01:09]} 23. Rab1
{[%clk 00:02:34]} {[%emt 00:00:01]} Bd4 {[%clk 00:04:09]} {[%emt 00:01:36]} 24.
Bxd4 {[%clk 00:02:35]} {[%emt 00:00:04]} cxd4 {[%clk 00:04:13]} {[%emt
00:00:02]} 25. Bc4 {[%clk 00:01:17]} {[%emt 00:01:22]} e5 {[%clk 00:04:06]}
{[%emt 00:00:12]} 26. Rd3 {[%clk 00:01:11]} {[%emt 00:00:10]} Nd7 {[%clk
00:03:25]} {[%emt 00:00:46]} 27. Rd2 {[%clk 00:00:56]} {[%emt 00:00:20]} Nb6
{[%clk 00:03:21]} {[%emt 00:00:09]} 28. Bd3 {[%clk 00:01:01]} Qd6 {[%clk
00:02:49]} {[%emt 00:00:38]} 29. f4 {[%clk 00:00:54]} {[%emt 00:00:12]} f6
{[%clk 00:02:32]} {[%emt 00:00:22]} 30. Rf1 {[%clk 00:00:51]} {[%emt 00:00:08]}
Rf8 {[%clk 00:02:35]} {[%emt 00:00:02]} 31. Qg2 {[%clk 00:00:49]} {[%emt
00:00:07]} Qe6 {[%clk 00:02:05]} {[%emt 00:00:35]} 32. h3 {[%clk 00:00:35]}
{[%emt 00:00:18]} Kh8 {[%clk 00:01:57]} {[%emt 00:00:14]} 33. Be2 {[%clk
00:00:29]} {[%emt 00:00:12]} Rc3 {[%clk 00:01:50]} {[%emt 00:00:10]} 34. Bg4
{[%clk 00:00:30]} {[%emt 00:00:05]} Qe7 {[%clk 00:01:40]} {[%emt 00:00:14]} 35.
fxe5 {[%clk 00:00:20]} {[%emt 00:00:16]} Qxe5 {[%clk 00:01:36]} {[%emt
00:00:09]} 36. Rf3 {[%clk 00:00:17]} {[%emt 00:00:08]} Qxe4 {[%clk 00:01:06]}
{[%emt 00:00:34]} 37. Rxc3 {[%clk 00:00:19]} {[%emt 00:00:04]} Qxg2+ {[%clk
00:01:10]} 38. Kxg2 {[%emt 00:00:03]} dxc3 {[%clk 00:01:04]} {[%emt 00:00:09]}
39. Rd6 {[%clk 00:00:26]} Rb8 {[%clk 00:01:02]} {[%emt 00:00:07]} 40. Kf3
{[%clk 00:00:25]} {[%emt 00:00:06]} h6 {[%clk 00:00:43]} {[%emt 00:00:26]} 41.
Bf5 {[%clk 00:00:28]} {[%emt 00:00:01]} Kg8 {[%clk 00:00:40]} {[%emt 00:00:07]}
42. Rc6 {[%clk 00:00:21]} {[%emt 00:00:12]} Rb7 {[%clk 00:00:32]} {[%emt
00:00:12]} 43. Rc5 {[%clk 00:00:22]} {[%emt 00:00:04]} Ra7 {[%clk 00:00:36]}
{[%emt 00:00:03]} 44. Rb5 {[%clk 00:00:26]} {[%emt 00:00:01]} Na8 {[%clk
00:00:36]} {[%emt 00:00:06]} 45. Be6+ {[%clk 00:00:27]} {[%emt 00:00:04]} Kh7
{[%clk 00:00:37]} {[%emt 00:00:03]} 46. Bd5 {[%clk 00:00:30]} {[%emt 00:00:02]}
Nc7 {[%clk 00:00:40]} {[%emt 00:00:01]} 47. Be4+ {[%clk 00:00:34]} {[%emt
00:00:02]} Kg8 {[%clk 00:00:43]} {[%emt 00:00:02]} 48. Rb8+ {[%clk 00:00:34]}
{[%emt 00:00:05]} Kf7 {[%clk 00:00:45]} {[%emt 00:00:02]} 49. Bd3 {[%clk
00:00:36]} {[%emt 00:00:03]} Na6 {[%clk 00:00:38]} {[%emt 00:00:13]} 50. Rb6
{[%clk 00:00:33]} {[%emt 00:00:08]} Nc5 {[%clk 00:00:32]} {[%emt 00:00:11]} 51.
Bc4+ {[%clk 00:00:35]} {[%emt 00:00:03]} Kg6 {[%clk 00:00:35]} {[%emt
00:00:01]} 52. Rc6 {[%clk 00:00:36]} {[%emt 00:00:03]} Nb7 {[%clk 00:00:36]}
{[%emt 00:00:05]} 53. Rc7 {[%clk 00:00:38]} {[%emt 00:00:03]} Kf5 {[%clk
00:00:31]} {[%emt 00:00:11]} 54. Bd5 {[%clk 00:00:41]} {[%emt 00:00:02]} Ke5
{[%clk 00:00:32]} 55. Rxb7 {[%clk 00:00:40]} {[%emt 00:00:10]} Rxb7 {[%emt
00:00:02]} 56. Bxb7 {[%clk 00:00:43]} {[%emt 00:00:01]} g5 {[%clk 00:00:40]} 57.
Bc8 {[%clk 00:00:46]} {[%emt 00:00:02]} h5 {[%clk 00:00:42]} {[%emt 00:00:03]}
58. Ba6 {[%clk 00:00:49]} {[%emt 00:00:02]} f5 {[%clk 00:00:45]} {[%emt
00:00:02]} 59. Bd3 {[%clk 00:00:52]} {[%emt 00:00:02]} h4 {[%clk 00:00:44]}
{[%emt 00:00:06]} 60. gxh4 {[%clk 00:00:54]} {[%emt 00:00:03]} gxh4 {[%clk
00:00:47]} {[%emt 00:00:02]} 61. Ke3 {[%clk 00:00:56]} {[%emt 00:00:03]} Kf6
{[%clk 00:00:43]} {[%emt 00:00:09]} 62. Kf4 {[%clk 00:01:00]} {[%emt 00:00:01]}
1-0



[ePGN "0.1;DGT LiveChess/2.2.6"]

[Event "MČR juniorů a juniorek v rapid šachu 2024"]
[Site "Hotel Fit Fun, Harrachov, Czech Republic"]
[Date "2024.09.22"]
[Round "7.28"]
[White "Fousek Petr"]
[Black "Zadrapova Gabriela"]
[Result "1-0"]
[TimeControl "20+5"]
[WhiteFideId "23736003"]
[BlackFideId "23753056"]
[WhiteElo "1731"]
[BlackElo "1456"]

1. e4 {[%clk 00:20:07]} {[%emt 00:00:02]} e5 {[%clk 00:20:09]} {[%emt
00:00:02]} 2. Nf3 {[%clk 00:20:10]} {[%emt 00:00:02]} Nc6 {[%clk 00:20:14]} 3.
Bb5 {[%clk 00:20:13]} {[%emt 00:00:03]} Nf6 {[%clk 00:20:17]} {[%emt 00:00:01]}
4. O-O {[%clk 00:19:39]} {[%emt 00:00:39]} d6 {[%clk 00:20:11]} {[%emt
00:00:11]} 5. Re1 {[%clk 00:19:36]} {[%emt 00:00:08]} Bd7 {[%clk 00:20:11]}
{[%emt 00:00:06]} 6. c3 {[%clk 00:19:27]} {[%emt 00:00:14]} a6 {[%clk
00:20:08]} {[%emt 00:00:07]} 7. Ba4 {[%clk 00:19:30]} {[%emt 00:00:02]} b5
{[%clk 00:20:12]} {[%emt 00:00:01]} 8. Bc2 {[%clk 00:19:33]} {[%emt 00:00:02]}
Be7 {[%clk 00:19:38]} {[%emt 00:00:39]} 9. d4 {[%clk 00:19:36]} {[%emt
00:00:01]} exd4 {[%clk 00:18:50]} {[%emt 00:00:54]} 10. cxd4 {[%clk 00:19:39]}
{[%emt 00:00:02]} O-O {[%clk 00:18:42]} {[%emt 00:00:12]} 11. a3 {[%clk
00:19:39]} {[%emt 00:00:06]} Bg4 {[%clk 00:18:17]} {[%emt 00:00:30]} 12. Be3
{[%clk 00:19:20]} {[%emt 00:00:23]} d5 {[%clk 00:17:13]} {[%emt 00:01:09]} 13.
e5 {[%clk 00:19:17]} {[%emt 00:00:09]} Ne4 {[%clk 00:17:16]} {[%emt 00:00:03]}
14. Nc3 {[%clk 00:19:02]} {[%emt 00:00:19]} Ng5 {[%clk 00:16:27]} {[%emt
00:00:54]} 15. Qd3 {[%clk 00:18:20]} {[%emt 00:00:47]} g6 {[%clk 00:15:38]}
{[%emt 00:00:54]} 16. Nxg5 {[%clk 00:18:03]} {[%emt 00:00:21]} Bxg5 {[%clk
00:15:39]} {[%emt 00:00:04]} 17. f4 {[%clk 00:17:01]} {[%emt 00:01:08]} Be7
{[%clk 00:14:35]} {[%emt 00:01:09]} 18. h3 {[%clk 00:16:53]} {[%emt 00:00:12]}
Bf5 {[%clk 00:14:35]} {[%emt 00:00:06]} 19. Qd2 {[%clk 00:16:57]} {[%emt
00:00:02]} Bxc2 {[%clk 00:14:08]} {[%emt 00:00:31]} 20. Qxc2 {[%clk 00:17:00]}
{[%emt 00:00:02]} b4 {[%clk 00:13:44]} {[%emt 00:00:29]} 21. Ne2 {[%clk
00:16:26]} {[%emt 00:00:39]} Na5 {[%clk 00:13:14]} {[%emt 00:00:35]} 22. f5
{[%clk 00:16:00]} {[%emt 00:00:31]} Nc4 {[%clk 00:12:41]} {[%emt 00:00:38]} 23.
Bh6 {[%clk 00:15:36]} {[%emt 00:00:29]} Re8 {[%clk 00:12:04]} {[%emt 00:00:41]}
24. f6 {[%clk 00:15:31]} {[%emt 00:00:10]} bxa3 {[%clk 00:11:15]} {[%emt
00:00:55]} 25. fxe7 {[%clk 00:15:15]} {[%emt 00:00:21]} Qxe7 {[%clk 00:11:18]}
{[%emt 00:00:01]} 26. bxa3 {[%clk 00:15:08]} {[%emt 00:00:12]} Nxa3 {[%clk
00:11:11]} {[%emt 00:00:12]} 27. Qc1 {[%clk 00:15:00]} {[%emt 00:00:14]} Nc4
{[%clk 00:11:03]} {[%emt 00:00:13]} 28. Bg5 {[%clk 00:15:04]} {[%emt 00:00:02]}
Qd7 {[%clk 00:09:30]} {[%emt 00:01:36]} 29. Bf6 {[%clk 00:15:07]} {[%emt
00:00:03]} Nd6 {[%clk 00:08:09]} {[%emt 00:01:27]} 30. exd6 {[%clk 00:14:57]}
{[%emt 00:00:14]} Qxd6 {[%clk 00:08:11]} {[%emt 00:00:03]} 31. Be5 {[%clk
00:14:54]} {[%emt 00:00:08]} Qe6 {[%clk 00:07:57]} {[%emt 00:00:19]} 32. Qxc7
{[%clk 00:14:33]} {[%emt 00:00:26]} Re7 {[%clk 00:07:25]} {[%emt 00:00:37]} 33.
Nf4 {[%clk 00:13:53]} {[%emt 00:00:45]} 1-0



[ePGN "0.1;DGT LiveChess/2.2.6"]

[Event "MČR juniorů a juniorek v rapid šachu 2024"]
[Site "Hotel Fit Fun, Harrachov, Czech Republic"]
[Date "2024.09.22"]
[Round "7.29"]
[White "Krizan Jakub"]
[Black "Boff Vojtech"]
[Result "1-0"]
[TimeControl "20+5"]
[WhiteFideId "23717017"]
[BlackFideId "23733969"]
[WhiteElo "1000"]
[BlackElo "1719"]

1. e4 {[%clk 00:20:08]} {[%emt 00:00:01]} c5 {[%clk 00:20:04]} {[%emt
00:00:05]} 2. Nf3 {[%clk 00:20:10]} {[%emt 00:00:03]} e6 {[%clk 00:20:03]}
{[%emt 00:00:06]} 3. Nc3 {[%clk 00:20:02]} {[%emt 00:00:14]} Nc6 {[%clk
00:20:02]} {[%emt 00:00:05]} 4. Bc4 {[%clk 00:19:59]} {[%emt 00:00:07]} a6
{[%clk 00:20:03]} {[%emt 00:00:05]} 5. a4 {[%clk 00:19:54]} {[%emt 00:00:10]}
d6 {[%clk 00:19:47]} {[%emt 00:00:21]} 6. d3 {[%clk 00:19:08]} {[%emt
00:00:52]} Be7 {[%clk 00:19:36]} {[%emt 00:00:15]} 7. O-O {[%clk 00:18:37]}
{[%emt 00:00:35]} Nf6 {[%clk 00:19:36]} {[%emt 00:00:05]} 8. Bg5 {[%clk
00:18:36]} {[%emt 00:00:07]} O-O {[%clk 00:19:32]} {[%emt 00:00:08]} 9. d4
{[%clk 00:16:23]} {[%emt 00:02:20]} cxd4 {[%clk 00:19:31]} {[%emt 00:00:05]} 10.
Nxd4 {[%clk 00:16:25]} {[%emt 00:00:03]} Bd7 {[%clk 00:19:07]} {[%emt
00:00:29]} 11. Nf3 {[%clk 00:16:16]} {[%emt 00:00:13]} h6 {[%clk 00:18:31]}
{[%emt 00:00:42]} 12. Bh4 {[%clk 00:16:16]} {[%emt 00:00:04]} Rc8 {[%clk
00:18:03]} {[%emt 00:00:33]} 13. Bb3 {[%clk 00:15:49]} {[%emt 00:00:32]} Na5
{[%clk 00:17:45]} {[%emt 00:00:23]} 14. Ba2 {[%clk 00:15:03]} {[%emt 00:00:51]}
Nc4 {[%clk 00:17:40]} {[%emt 00:00:09]} 15. Bxc4 {[%clk 00:14:06]} {[%emt
00:01:03]} Rxc4 {[%clk 00:17:43]} {[%emt 00:00:02]} 16. Qd3 {[%clk 00:14:08]}
{[%emt 00:00:04]} Rc6 {[%clk 00:17:18]} {[%emt 00:00:29]} 17. Rad1 {[%clk
00:14:00]} {[%emt 00:00:14]} Qc7 {[%clk 00:17:17]} {[%emt 00:00:05]} 18. e5
{[%clk 00:13:32]} {[%emt 00:00:34]} dxe5 {[%clk 00:16:46]} {[%emt 00:00:35]} 19.
Bxf6 {[%clk 00:13:29]} {[%emt 00:00:08]} Rd6 {[%clk 00:16:43]} {[%emt
00:00:08]} 20. Bxe5 {[%clk 00:13:11]} {[%emt 00:00:23]} Rxd3 {[%clk 00:16:36]}
{[%emt 00:00:11]} 21. Bxc7 {[%clk 00:13:14]} {[%emt 00:00:03]} Rxd1 {[%clk
00:16:37]} {[%emt 00:00:05]} 22. Rxd1 {[%clk 00:13:16]} {[%emt 00:00:03]} Bc6
{[%clk 00:16:39]} {[%emt 00:00:02]} 23. Ne5 {[%clk 00:13:17]} {[%emt 00:00:04]}
Rc8 {[%clk 00:16:35]} {[%emt 00:00:10]} 24. Nxc6 {[%clk 00:13:13]} {[%emt
00:00:08]} Rxc7 {[%clk 00:16:35]} {[%emt 00:00:05]} 25. Nxe7+ {[%clk 00:13:15]}
{[%emt 00:00:02]} Rxe7 {[%clk 00:16:39]} {[%emt 00:00:02]} 26. f3 {[%clk
00:13:08]} {[%emt 00:00:12]} Kh7 {[%clk 00:16:42]} {[%emt 00:00:02]} 27. Kf2
{[%clk 00:13:12]} Kg6 {[%clk 00:16:46]} 28. Ne4 {[%clk 00:13:05]} {[%emt
00:00:14]} Rc7 {[%clk 00:16:45]} {[%emt 00:00:05]} 29. c3 {[%clk 00:13:09]}
{[%emt 00:00:02]} b5 {[%clk 00:16:36]} {[%emt 00:00:13]} 30. axb5 {[%clk
00:13:08]} {[%emt 00:00:07]} axb5 {[%clk 00:16:40]} 31. Rd4 {[%clk 00:12:49]}
{[%emt 00:00:24]} Ra7 {[%clk 00:16:36]} {[%emt 00:00:09]} 32. Rb4 {[%emt
00:00:09]} Rb7 {[%clk 00:16:33]} {[%emt 00:00:06]} 33. Nd6 {[%clk 00:12:50]}
{[%emt 00:00:02]} Rd7 {[%clk 00:16:34]} {[%emt 00:00:03]} 34. Nxb5 {[%clk
00:12:50]} {[%emt 00:00:06]} Rd2+ {[%clk 00:16:37]} {[%emt 00:00:02]} 35. Kg3
{[%clk 00:12:53]} {[%emt 00:00:02]} f5 {[%clk 00:16:35]} {[%emt 00:00:08]} 36.
c4 {[%clk 00:12:52]} {[%emt 00:00:06]} e5 {[%clk 00:16:33]} {[%emt 00:00:06]}
37. Nc3 {[%clk 00:12:26]} {[%emt 00:00:31]} f4+ {[%clk 00:16:36]} {[%emt
00:00:02]} 38. Kh3 {[%clk 00:12:25]} {[%emt 00:00:06]} Kf5 {[%clk 00:16:26]}
{[%emt 00:00:14]} 39. Ne4 {[%clk 00:12:26]} {[%emt 00:00:05]} Rc2 {[%clk
00:16:28]} {[%emt 00:00:03]} 40. c5 {[%clk 00:12:15]} {[%emt 00:00:16]} g5
{[%clk 00:16:23]} {[%emt 00:00:10]} 41. Rc4 {[%clk 00:12:11]} {[%emt 00:00:09]}
Rxb2 {[%clk 00:16:24]} {[%emt 00:00:04]} 42. c6 {[%clk 00:12:14]} {[%emt
00:00:02]} h5 {[%clk 00:16:27]} {[%emt 00:00:01]} 43. c7 {[%clk 00:11:40]}
{[%emt 00:00:40]} g4+ {[%clk 00:16:31]} 44. fxg4+ {[%clk 00:11:44]} {[%emt
00:00:02]} hxg4+ {[%clk 00:16:35]} 45. Kh4 {[%clk 00:11:48]} {[%emt 00:00:01]}
Rxg2 {[%clk 00:16:31]} {[%emt 00:00:09]} 46. c8=Q+ {[%clk 00:11:50]} {[%emt
00:00:03]} Kg6 {[%clk 00:16:33]} {[%emt 00:00:02]} 47. Rc6+ {[%clk 00:11:52]}
{[%emt 00:00:04]} Kg7 {[%clk 00:16:35]} {[%emt 00:00:03]} 48. Qd7+ {[%clk
00:11:55]} {[%emt 00:00:01]} 1-0



[ePGN "0.1;DGT LiveChess/2.2.6"]

[Event "MČR juniorů a juniorek v rapid šachu 2024"]
[Site "Hotel Fit Fun, Harrachov, Czech Republic"]
[Date "2024.09.22"]
[Round "7.3"]
[White "Lihotsky Lukas"]
[Black "Pressler Tobias"]
[Result "1-0"]
[TimeControl "20+5"]
[WhiteFideId "23727004"]
[BlackFideId "23715359"]
[WhiteElo "1975"]
[BlackElo "1992"]

1. d4 {[%clk 00:20:08]} {[%emt 15:47:11]} d5 {[%clk 00:20:09]} {[%emt
00:00:02]} 2. c4 {[%clk 00:20:12]} e6 {[%clk 00:20:08]} {[%emt 00:00:06]} 3.
Nc3 {[%clk 00:20:15]} {[%emt 00:00:02]} Nf6 {[%clk 00:20:12]} {[%emt 00:00:01]}
4. Bg5 {[%clk 00:20:19]} Be7 {[%clk 00:20:16]} {[%emt 00:00:02]} 5. e3 {[%clk
00:20:23]} O-O {[%clk 00:20:18]} {[%emt 00:00:02]} 6. Nf3 {[%clk 00:20:26]}
{[%emt 00:00:02]} c6 {[%clk 00:20:20]} {[%emt 00:00:03]} 7. Rc1 {[%clk
00:20:17]} {[%emt 00:00:14]} dxc4 {[%clk 00:19:55]} {[%emt 00:00:30]} 8. Bxc4
{[%clk 00:20:14]} {[%emt 00:00:08]} b5 {[%clk 00:19:59]} 9. Bd3 {[%clk
00:20:05]} {[%emt 00:00:13]} Bb7 {[%clk 00:20:03]} {[%emt 00:00:02]} 10. O-O
{[%clk 00:18:58]} {[%emt 00:01:11]} Nbd7 {[%clk 00:19:48]} {[%emt 00:00:21]} 11.
a4 {[%clk 00:18:23]} {[%emt 00:00:40]} a6 {[%clk 00:19:40]} {[%emt 00:00:13]}
12. Qe2 {[%clk 00:16:15]} {[%emt 00:02:12]} Rc8 {[%clk 00:17:24]} {[%emt
00:02:22]} 13. Rfd1 {[%clk 00:14:38]} {[%emt 00:01:41]} Qa5 {[%clk 00:16:22]}
{[%emt 00:01:08]} 14. Ra1 {[%clk 00:13:18]} {[%emt 00:01:24]} Qb6 {[%clk
00:16:09]} {[%emt 00:00:18]} 15. Ne5 {[%clk 00:11:12]} {[%emt 00:02:11]} Rc7
{[%clk 00:14:18]} {[%emt 00:01:57]} 16. Nxd7 {[%clk 00:09:01]} {[%emt
00:02:16]} Rxd7 {[%clk 00:14:19]} {[%emt 00:00:05]} 17. Bxf6 {[%clk 00:08:57]}
{[%emt 00:00:08]} Bxf6 {[%clk 00:14:19]} {[%emt 00:00:06]} 18. Ne4 {[%clk
00:09:01]} {[%emt 00:00:01]} Be7 {[%clk 00:14:23]} 19. Nc5 {[%clk 00:06:36]}
{[%emt 00:02:30]} Rd5 {[%clk 00:12:26]} {[%emt 00:02:02]} 20. Be4 {[%clk
00:06:03]} {[%emt 00:00:37]} Rdd8 {[%clk 00:09:43]} {[%emt 00:02:48]} 21. Qc2
{[%clk 00:05:09]} {[%emt 00:00:59]} g6 {[%clk 00:09:23]} {[%emt 00:00:25]} 22.
axb5 {[%clk 00:04:09]} {[%emt 00:01:04]} axb5 {[%clk 00:07:50]} {[%emt
00:01:39]} 23. Nxb7 {[%clk 00:04:02]} {[%emt 00:00:12]} Qxb7 {[%clk 00:07:54]}
24. Qxc6 {[%clk 00:04:04]} {[%emt 00:00:03]} Qxc6 {[%clk 00:07:57]} {[%emt
00:00:02]} 25. Bxc6 {[%clk 00:04:07]} Rc8 {[%clk 00:08:01]} {[%emt 00:00:02]}
26. Be4 {[%clk 00:03:31]} {[%emt 00:00:41]} Rc7 {[%clk 00:07:52]} {[%emt
00:00:15]} 27. Bd3 {[%clk 00:03:08]} {[%emt 00:00:27]} b4 {[%clk 00:07:47]}
{[%emt 00:00:10]} 28. b3 {[%clk 00:03:09]} {[%emt 00:00:04]} Rc3 {[%clk
00:07:00]} {[%emt 00:00:52]} 29. Bc4 {[%clk 00:03:04]} {[%emt 00:00:10]} Rc8
{[%clk 00:07:02]} {[%emt 00:00:03]} 30. g3 {[%clk 00:02:59]} {[%emt 00:00:10]}
Rc2 {[%clk 00:06:37]} {[%emt 00:00:31]} 31. Ra7 {[%clk 00:02:53]} {[%emt
00:00:10]} Kf8 {[%clk 00:06:40]} {[%emt 00:00:02]} 32. Rda1 {[%clk 00:02:47]}
{[%emt 00:00:10]} R8xc4 {[%clk 00:06:05]} {[%emt 00:00:41]} 33. bxc4 {[%clk
00:02:43]} {[%emt 00:00:10]} b3 {[%clk 00:06:09]} 34. Kg2 {[%clk 00:02:02]}
{[%emt 00:00:46]} b2 {[%clk 00:05:47]} {[%emt 00:00:27]} 35. Rb1 {[%clk
00:02:05]} {[%emt 00:00:01]} Bb4 {[%clk 00:05:51]} 36. Rb7 {[%clk 00:01:56]}
{[%emt 00:00:14]} Bc3 {[%clk 00:05:55]} 37. c5 {[%clk 00:01:40]} {[%emt
00:00:21]} Ke8 {[%clk 00:05:24]} {[%emt 00:00:37]} 38. Rb3 {[%clk 00:01:36]}
{[%emt 00:00:08]} e5 {[%clk 00:04:18]} {[%emt 00:01:12]} 39. Rxc3 {[%clk
00:01:34]} {[%emt 00:00:07]} Rxc3 {[%clk 00:04:21]} {[%emt 00:00:03]} 40. Rxb2
{[%clk 00:01:38]} exd4 41. exd4 {[%clk 00:01:42]} Rd3 {[%clk 00:04:24]} {[%emt
00:00:01]} 42. Rb4 {[%clk 00:01:38]} {[%emt 00:00:08]} Kd7 {[%clk 00:04:28]}
{[%emt 00:00:02]} 43. Ra4 {[%clk 00:01:35]} {[%emt 00:00:09]} Kc6 {[%clk
00:04:29]} {[%emt 00:00:04]} 44. Ra6+ {[%clk 00:01:34]} {[%emt 00:00:05]} Kc7
{[%clk 00:04:19]} {[%emt 00:00:15]} 45. Rf6 {[%clk 00:01:32]} {[%emt 00:00:07]}
Rxd4 {[%clk 00:04:20]} {[%emt 00:00:04]} 46. Rxf7+ {[%emt 00:00:10]} Kc6 {[%emt
00:00:01]} 47. Rxh7 {[%clk 00:01:25]} {[%emt 00:00:06]} Kxc5 {[%clk 00:04:28]}
{[%emt 00:00:01]} 48. h4 {[%clk 00:01:23]} {[%emt 00:00:07]} Rd6 {[%clk
00:04:10]} {[%emt 00:00:24]} 49. h5 {[%clk 00:01:21]} {[%emt 00:00:07]} gxh5
{[%clk 00:04:13]} {[%emt 00:00:02]} 50. Rxh5+ {[%clk 00:01:24]} Kd4 {[%clk
00:04:16]} {[%emt 00:00:03]} 51. f4 {[%clk 00:01:24]} {[%emt 00:00:04]} Ke4
{[%clk 00:04:20]} {[%emt 00:00:02]} 52. Re5+ {[%clk 00:01:28]} {[%emt
00:00:02]} 1-0



[ePGN "0.1;DGT LiveChess/2.2.6"]